{"text_format":"3","workbook":"xlsx","n_sheets":2,"sheets":["Arkusz1","Arkusz2"],"not_rendered":{"macros":1},"read":"whole","date_system":"1900"}

{"sheet":"Arkusz1","index":0,"n_rows":33,"n_cols":7,"rows_kept":33,"merged":[[1,0,1,2],[2,0,2,6],[3,0,3,6],[4,2,4,4],[5,0,5,6],[9,0,9,6],[18,0,18,6],[21,0,21,6],[23,2,23,5],[23,6,24,6],[24,2,24,5],[25,2,25,5],[26,2,26,5],[26,6,27,6],[27,2,27,5],[28,0,28,1],[28,2,28,6],[29,0,29,6],[30,0,30,6],[31,4,31,6],[32,2,32,6]]}
[]
["………………………………………………"]
["(pieczęć Wykonawcy/Wykonawców)                                                 Załącznik nr 1 do Zaproszenia do składania ofert"]
["nr sprawy:  RDK.26.08.2024.KK   "]
[null,null,"KOSZTORYS OFERTOWY"]
["Remont pokrycia dachowego oraz montaż dwóch rekuperatorów w pomieszczeniach biurowych w obiekcie administracyjno - garażowym w Rejonu Dróg Wojewódzkich w Kartuzach"]
["Poz","Podstawa","ASORTYMENT ROBÓT","Jm","Ilość","Cena","Wartość [zł]"]
["Koszt.",{"$nulls":4},"Jedn. [zł]","kol 5x6"]
[1,2,3,4,5,6,7]
["Remont pokrycia dachowego z ułożeniem dodatkowej warstwy papy, montażem kominków"]
[1,"KNR 0-22 0528-01","Renowacja starych dachów krytych papą przy użyciu papy\ntermozgrzewalnej - przygotowanie podłoża","m2","24.00*\n14.00+\n12.00*6.00 =\n408,00"]
[2,"KNR 4-01 0519-03","Drobne naprawy pokrycia papowego polegające na\nwstawieniu łat do 1.0 m2 - z papy termozgrzewalnej","szt.",{"v":10,"d":"10.00"}]
[3,"KNR 2-02 0602-01","Izolacje przeciwwilgociowe powłokowe bitumiczne poziome\n- wykonywane na zimno z emulsji asfaltowej - gruntowanie\nistniejącej papy","m2",{"v":408,"d":"408.00"}]
[4,"KNR 0-22 0528-02","Renowacja starych dachów krytych papą przy użyciu papy\ntermozgrzewalnej - krycie","m2",{"v":408,"d":"408.00"}]
[5,"KNR 0-22 0529-04","Obróbki dachowe murów ogniowych pasem papy szer.\n30 cm przy zastosowaniu papy termozgrzewalnej","mb","14.00+22.00\n= 36,00"]
[6,"KNR 0-22 0529-05","Obróbki dachowe murów ogniowych pasem papy przy\nzastosowaniu papy termozgrzewalnej - dodatek za każde\n5 cm szer. ponad 30 cm","mb","14.00+22.00\n= 36,00"]
[7,"KNR-W 2-15\n0213-06","Rury wywiewne z PVC - systemowe kominki odpowietrzające\npokrycie dachowe","szt.",{"v":4,"d":"4.00"}]
[8,"NNRNKB 202 0541-01","(z.VI) Obróbki blacharskie z blachy powlekanej o szer.w\nrozwinięciu do 25 cm - montaż kaplistwy na połączeniu\nniższej części budynku z wyższą","m2","14.00*0.20 =\n2,80"]
["Montaż rekuperatorów ściennych np typu REQU R+ 160 EBERG lub równoważne"]
[9,"KNR 4-01 0333-10","Przebicie otworów w ścianach z cegieł o grubości 1 1/2\nceg. na zaprawie cementowo-wapiennej","szt.",{"v":2,"d":"2.00"}]
[10,"Kalkulacja własna","Montaż rekuperatorów ściannych np REQU R+ 160\nEBERG lub równoważne z doprowadzeniem i podłączeniem\ninstalacji elektrycznej, obróbką wykonanego otworu\nna gotowo i malowaniem ściany od wewnątrz pomieszczenia\ni na zewnątrz","szt.",{"v":2,"d":"2.00"}]
["Utylizacja materiałów z rozbiórki"]
[11,"KNR 4-01 0108-09","Wywiezienie gruzu spryzmowanego samochodami\nskrzyniowymi - analogia - wywóz i utylizacja materiałów\nz rozbiórki","m3",{"v":0.5,"d":"0.50"}]
[null,null," "]
[null,null,"(cena  bez podatku VAT)"]
[null,null,"Podatek VAT 23 %"]
[null,null,"OGÓŁEM"]
[null,null,"(cena oferowana z podatkiem VAT)"]
["słownie brutto: ",null,{"$f":"Słownie(G27)","v":"zero złotych zero groszy"}]
[]
["__________________ dnia __.__.2024r."]
[{"$nulls":4},"…………………………...……………….."]
[null,null,"                            (podpis Wykonawcy/Pełnomocnika)"]

{"sheet":"Arkusz2","index":1,"n_rows":27,"n_cols":14,"rows_kept":27,"hidden":true}
[]
[]
[null,0,6,{"$nulls":4},0,6.1,null,null,0,6.1]
[null,50,5.9,null,{"$f":"(B4-B3)*(C4+C3)/2","v":297.5},null,null,50,5.8,{"$f":"(H4-H3)*(I4+I3)/2","v":297.49999999999994},null,50,5.9,{"$f":"(L4-L3)*(M4+M3)/2","v":300}]
[null,100,6,null,{"$f":"(B5-B4)*(C5+C4)/2","v":297.5},null,null,100,6,{"$f":"(H5-H4)*(I5+I4)/2","v":295},null,100,6,{"$f":"(L5-L4)*(M5+M4)/2","v":297.5}]
[null,150,5.9,null,297.5,null,null,150,5.9,297.5,null,150,5.9,297.5]
[null,200,5.8,null,292.5,null,null,200,5.8,292.5,null,200,5.8,292.5]
[null,250,6,null,295,null,null,250,6,295,null,250,6,295]
[null,300,6,null,300,null,null,300,5.8,295,null,300,6.1,302.5]
[null,350,6,null,300,null,null,350,6,295,null,350,6,302.5]
[null,400,6.2,null,305,null,null,400,6,300,null,400,6.1,302.5]
[null,450,6,null,305,null,null,450,6,300,null,450,5.9,300]
[null,500,6,null,300,null,null,500,6,300,null,500,6.1,300]
[null,500,null,null,{"$f":"(B14-B13)*(C14+C13)/2","v":0},null,null,550,6.2,305,null,550,6,302.5]
[{"$nulls":4},0,null,null,600,6,305,null,600,6.2,305]
[{"$nulls":4},0,null,null,650,5.9,297.5,null,650,6,305]
[{"$nulls":4},0,null,null,700,6,297.5,null,700,6.1,302.5]
[{"$nulls":4},0,null,null,750,6,300,null,750,6,302.5]
[{"$nulls":4},0,null,null,800,5.8,295,null,800,5.9,297.5]
[{"$nulls":4},0,null,null,850,5.9,292.5,null,850,6.4,307.5]
[{"$nulls":4},0,null,null,900,5.9,295,null,900,6.6,325]
[{"$nulls":4},0,null,null,933,6,196.35,null,950,6.6,330]
[{"$nulls":4},0,{"$nulls":3},{"$f":"AVERAGE(I3:I22)","v":5.955},{"$f":"SUM(J4:J22)","v":5551.35},null,1000,6.5,327.5]
[{"$nulls":4},{"$f":"SUM(E4:E23)","v":2990},{"$nulls":7},{"$f":"AVERAGE(M4:M23)","v":6.105},{"$f":"SUM(N4:N23)","v":6095}]
[{"$nulls":12},{"$f":"1000*M24","v":6105}]
[null,null,{"$f":"AVERAGE(C3:C23)","v":5.9818181818181815}]
[null,null,{"$f":"500*C26","v":2990.9090909090905}]